[Event "Titled Tuesday Blitz June 1 2021"]
[White "Titus, Andrew"]
[Black "Ivanisevic, Ivan"]
[WhiteFideId "2059770"]
[BlackFideId "912417"]
[WhiteElo "2044"]
[BlackElo "2499"]
[Result "0-1"]
[Round "02"]
[TimeControl "180+1"]
[Date "2021.06.01"]
[WhiteClock "0:00:03"]
[BlackClock "0:00:22"]

1. e4 {[%clk 0:03:00]}  c5 {[%clk 0:02:59]} 2. Nf3 {[%clk 0:03:00]}  Nc6 {[%clk 0:02:58]} 3. d4 {[%clk 0:02:54]}  cxd4 {[%clk 0:02:58]} 4. Nxd4 {[%clk 0:02:55]}  Qc7 {[%clk 0:02:57]} 5. Nc3 {[%clk 0:02:55]}  e6 {[%clk 0:02:57]} 6. g3 {[%clk 0:02:56]}  a6 {[%clk 0:02:57]} 7. Bg2 {[%clk 0:02:56]}  Nf6 {[%clk 0:02:57]} 8. O-O {[%clk 0:02:57]}  Nxd4 {[%clk 0:02:57]} 9. Qxd4 {[%clk 0:02:56]}  Bc5 {[%clk 0:02:58]} 10. Bf4 {[%clk 0:02:54]}  d6 {[%clk 0:02:58]} 11. Qd3 {[%clk 0:02:49]}  h6 {[%clk 0:02:57]} 12. Rad1 {[%clk 0:02:46]}  e5 {[%clk 0:02:53]} 13. Be3 {[%clk 0:02:42]}  Bxe3 {[%clk 0:02:53]} 14. fxe3 {[%clk 0:02:31]}  Be6 {[%clk 0:02:52]} 15. Nd5 {[%clk 0:02:27]}  Bxd5 {[%clk 0:02:46]} 16. exd5 {[%clk 0:02:28]}  Qe7 {[%clk 0:02:25]} 17. c4 {[%clk 0:02:27]}  Rc8 {[%clk 0:02:09]} 18. b3 {[%clk 0:02:23]}  O-O {[%clk 0:02:07]} 19. Rf2 {[%clk 0:02:05]}  Ng4 {[%clk 0:01:51]} 20. Rff1 {[%clk 0:02:00]}  h5 {[%clk 0:01:51]} 21. h3 {[%clk 0:01:58]}  Nh6 {[%clk 0:01:51]} 22. e4 {[%clk 0:01:50]}  g6 {[%clk 0:01:49]} 23. Rc1 {[%clk 0:01:47]}  b6 {[%clk 0:01:47]} 24. b4 {[%clk 0:01:46]}  Kg7 {[%clk 0:01:31]} 25. Rf2 {[%clk 0:01:40]}  Qg5 {[%clk 0:01:25]} 26. Rfc2 {[%clk 0:01:37]}  f5 {[%clk 0:01:13]} 27. c5 {[%clk 0:01:35]}  bxc5 {[%clk 0:01:12]} 28. bxc5 {[%clk 0:01:36]}  dxc5 {[%clk 0:01:06]} 29. d6 {[%clk 0:01:15]}  f4 {[%clk 0:01:04]} 30. Rxc5 {[%clk 0:01:14]}  Rxc5 {[%clk 0:01:03]} 31. Rxc5 {[%clk 0:01:15]}  f3 {[%clk 0:00:58]} 32. Rc7+ {[%clk 0:00:57]}  Kh8 {[%clk 0:00:58]} 33. d7 {[%clk 0:00:40]}  fxg2 {[%clk 0:00:48]} 34. Rc8 {[%clk 0:00:26]}  Rd8 {[%clk 0:00:44]} 35. Qd6 {[%clk 0:00:18]}  Nf7 {[%clk 0:00:35]} 36. Qe6 {[%clk 0:00:17]}  Kg7 {[%clk 0:00:33]} 37. h4 {[%clk 0:00:15]}  Qe3+ {[%clk 0:00:29]} 38. Kxg2 {[%clk 0:00:15]}  Qxe4+ {[%clk 0:00:29]} 39. Kh2 {[%clk 0:00:14]}  Qe2+ {[%clk 0:00:28]} 40. Kg1 {[%clk 0:00:14]}  Qd1+ {[%clk 0:00:27]} 41. Kh2 {[%clk 0:00:11]}  Rxd7 {[%clk 0:00:23]} 42. Rg8+ {[%clk 0:00:03]}  Kxg8 {[%clk 0:00:21]} 43. Qxg6+ {[%clk 0:00:04]}  Kf8 {[%clk 0:00:22]} 44. Qxa6 {[%clk 0:00:03]} 0-1


[Site "https://www.chess.com"]

[Event "Titled Tuesday Blitz June 1 2021"]
[White "Tristan, Leonardo"]
[Black "Sirosh, Ilja"]
[WhiteFideId "113816"]
[BlackFideId "4500458"]
[WhiteElo "2404"]
[BlackElo "2241"]
[Result "1-0"]
[Round "02"]
[TimeControl "180+1"]
[Date "2021.06.01"]
[WhiteClock "0:00:36"]
[BlackClock "0:00:13"]

1. d4 {[%clk 0:03:00]}  d5 {[%clk 0:02:59]} 2. Bf4 {[%clk 0:03:00]}  Nf6 {[%clk 0:02:58]} 3. e3 {[%clk 0:03:00]}  e6 {[%clk 0:02:58]} 4. Nf3 {[%clk 0:03:00]}  c5 {[%clk 0:02:59]} 5. Nbd2 {[%clk 0:02:59]}  Bd6 {[%clk 0:02:59]} 6. Bb5+ {[%clk 0:02:59]}  Nc6 {[%clk 0:02:56]} 7. Bg3 {[%clk 0:02:59]}  O-O {[%clk 0:02:53]} 8. c3 {[%clk 0:02:59]}  Be7 {[%clk 0:02:51]} 9. Bd3 {[%clk 0:02:47]}  Nh5 {[%clk 0:02:50]} 10. Ne5 {[%clk 0:02:30]}  g6 {[%clk 0:02:23]} 11. f4 {[%clk 0:02:26]}  Nxg3 {[%clk 0:02:11]} 12. hxg3 {[%clk 0:02:26]}  Nxe5 {[%clk 0:02:11]} 13. dxe5 {[%clk 0:02:16]}  c4 {[%clk 0:02:11]} 14. Bc2 {[%clk 0:02:09]}  Qb6 {[%clk 0:02:12]} 15. Ke2 {[%clk 0:01:15]}  Qxb2 {[%clk 0:02:09]} 16. Rc1 {[%clk 0:01:16]}  Bc5 {[%clk 0:01:54]} 17. g4 {[%clk 0:01:03]}  Qxc3 {[%clk 0:01:51]} 18. Rh3 {[%clk 0:01:03]}  f5 {[%clk 0:00:52]} 19. Bxf5 {[%clk 0:00:51]}  Qb2 {[%clk 0:00:52]} 20. Qh1 {[%clk 0:00:40]}  exf5 {[%clk 0:00:21]} 21. Rxh7 {[%clk 0:00:39]}  Be6 {[%clk 0:00:13]} 22. Qh6 {[%clk 0:00:36]} 1-0


[Site "https://www.chess.com"]

[Event "Titled Tuesday Blitz June 1 2021"]
[White "Vazquez, Guillermo"]
[Black "Blit, Jacques"]
[WhiteFideId "3702308"]
[BlackFideId "114839"]
[WhiteElo "2536"]
[BlackElo "2390"]
[Result "1-0"]
[Round "02"]
[TimeControl "180+1"]
[Date "2021.06.01"]
[WhiteClock "0:00:38"]
[BlackClock "0:00:02"]

1. e4 {[%clk 0:03:00]}  c5 {[%clk 0:02:57]} 2. Nf3 {[%clk 0:03:00]}  a6 {[%clk 0:02:58]} 3. g3 {[%clk 0:02:55]}  Nc6 {[%clk 0:02:53]} 4. Bg2 {[%clk 0:02:52]}  e5 {[%clk 0:02:53]} 5. O-O {[%clk 0:02:51]}  g6 {[%clk 0:02:49]} 6. c3 {[%clk 0:02:45]}  Bg7 {[%clk 0:02:48]} 7. d4 {[%clk 0:02:45]}  exd4 {[%clk 0:02:40]} 8. cxd4 {[%clk 0:02:44]}  cxd4 {[%clk 0:02:39]} 9. Re1 {[%clk 0:02:36]}  Nge7 {[%clk 0:02:38]} 10. Nbd2 {[%clk 0:02:20]}  O-O {[%clk 0:02:38]} 11. Nb3 {[%clk 0:02:20]}  d5 {[%clk 0:02:33]} 12. e5 {[%clk 0:02:17]}  Nf5 {[%clk 0:01:55]} 13. Bf4 {[%clk 0:02:08]}  Re8 {[%clk 0:01:40]} 14. Rc1 {[%clk 0:02:00]}  h6 {[%clk 0:01:30]} 15. h4 {[%clk 0:01:54]}  a5 {[%clk 0:01:17]} 16. Qd2 {[%clk 0:01:47]}  a4 {[%clk 0:01:13]} 17. Nbxd4 {[%clk 0:01:23]}  Nfxd4 {[%clk 0:01:10]} 18. Nxd4 {[%clk 0:01:24]}  Nxe5 {[%clk 0:00:46]} 19. Bxh6 {[%clk 0:01:22]}  Nc4 {[%clk 0:00:42]} 20. Qf4 {[%clk 0:01:13]}  Be5 {[%clk 0:00:10]} 21. Rxe5 {[%clk 0:00:58]}  Nxe5 {[%clk 0:00:06]} 22. Rd1 {[%clk 0:00:52]}  f6 {[%clk 0:00:02]} 23. Nb5 {[%clk 0:00:44]}  Nf7 {[%clk 0:00:02]} 24. Bxd5 {[%clk 0:00:40]}  Be6 {[%clk 0:00:02]} 25. Nc7 {[%clk 0:00:38]}  Bxd5 {[%clk 0:00:02]} 26. Rxd5 {[%clk 0:00:38]}  Qe7 {[%clk 0:00:02]} 27. Nxe8 {[%clk 0:00:38]} 1-0


[Site "https://www.chess.com"]

[Event "Titled Tuesday Blitz June 1 2021"]
[White "Vlassov, Nikolai"]
[Black "Goltsev, Dmitry"]
[WhiteFideId "4103360"]
[BlackFideId "24176710"]
[WhiteElo "2407"]
[BlackElo "2366"]
[Result "0-1"]
[Round "02"]
[TimeControl "180+1"]
[Date "2021.06.01"]
[WhiteClock "0:00:01"]
[BlackClock "0:00:22"]

1. e4 {[%clk 0:03:00]}  e6 {[%clk 0:02:48]} 2. d4 {[%clk 0:03:00]}  d5 {[%clk 0:02:49]} 3. exd5 {[%clk 0:03:01]}  exd5 {[%clk 0:02:49]} 4. Nf3 {[%clk 0:03:02]}  Nf6 {[%clk 0:02:49]} 5. c4 {[%clk 0:03:02]}  c6 {[%clk 0:02:49]} 6. Bd3 {[%clk 0:03:02]}  Be6 {[%clk 0:02:47]} 7. Ng5 {[%clk 0:03:01]}  Bg4 {[%clk 0:02:42]} 8. Qb3 {[%clk 0:02:59]}  Qb6 {[%clk 0:02:38]} 9. c5 {[%clk 0:02:52]}  Qxb3 {[%clk 0:02:36]} 10. axb3 {[%clk 0:02:53]}  h6 {[%clk 0:02:37]} 11. Nf3 {[%clk 0:02:40]}  Nbd7 {[%clk 0:02:36]} 12. Nbd2 {[%clk 0:02:32]}  a6 {[%clk 0:02:34]} 13. O-O {[%clk 0:02:31]}  O-O-O {[%clk 0:02:32]} 14. b4 {[%clk 0:02:30]}  g5 {[%clk 0:02:30]} 15. Re1 {[%clk 0:02:10]}  Bg7 {[%clk 0:02:28]} 16. h3 {[%clk 0:02:05]}  Bh5 {[%clk 0:02:27]} 17. Ne5 {[%clk 0:01:52]}  Nxe5 {[%clk 0:02:25]} 18. dxe5 {[%clk 0:01:53]}  Nd7 {[%clk 0:02:25]} 19. e6 {[%clk 0:01:31]}  fxe6 {[%clk 0:02:26]} 20. Rxe6 {[%clk 0:01:30]}  Rde8 {[%clk 0:02:25]} 21. Bf5 {[%clk 0:01:22]}  Rxe6 {[%clk 0:02:23]} 22. Bxe6 {[%clk 0:01:22]}  Re8 {[%clk 0:02:24]} 23. Bf5 {[%clk 0:00:59]}  Re1+ {[%clk 0:02:22]} 24. Kh2 {[%clk 0:00:57]}  Be5+ {[%clk 0:02:17]} 25. g3 {[%clk 0:00:57]}  Kc7 {[%clk 0:02:16]} 26. Kg2 {[%clk 0:00:53]}  Be2 {[%clk 0:02:01]} 27. Bg4 {[%clk 0:00:36]}  Bxg4 {[%clk 0:01:48]} 28. hxg4 {[%clk 0:00:36]}  Rd1 {[%clk 0:01:48]} 29. Nb3 {[%clk 0:00:30]}  Nf6 {[%clk 0:01:44]} 30. f3 {[%clk 0:00:28]}  Kc8 {[%clk 0:01:30]} 31. f4 {[%clk 0:00:24]}  Bc7 {[%clk 0:00:51]} 32. fxg5 {[%clk 0:00:24]}  Nxg4 {[%clk 0:00:43]} 33. gxh6 {[%clk 0:00:22]}  Rd3 {[%clk 0:00:43]} 34. Ra3 {[%clk 0:00:08]}  Rxg3+ {[%clk 0:00:39]} 35. Kf1 {[%clk 0:00:09]}  Rh3 {[%clk 0:00:36]} 36. Nd4 {[%clk 0:00:08]}  Rh1+ {[%clk 0:00:33]} 37. Kg2 {[%clk 0:00:09]}  Rxc1 {[%clk 0:00:33]} 38. h7 {[%clk 0:00:07]}  Be5 {[%clk 0:00:33]} 39. Nf3 {[%clk 0:00:06]}  Rc2+ {[%clk 0:00:29]} 40. Kh3 {[%clk 0:00:05]}  Nf2+ {[%clk 0:00:29]} 41. Kh4 {[%clk 0:00:05]}  Bh8 {[%clk 0:00:29]} 42. Ng5 {[%clk 0:00:02]}  Ne4 {[%clk 0:00:26]} 43. Rf3 {[%clk 0:00:02]}  Rh2+ {[%clk 0:00:23]} 44. Kg4 {[%clk 0:00:01]}  Bxb2 {[%clk 0:00:22]} 0-1


[Site "https://www.chess.com"]

[Event "Titled Tuesday Blitz June 1 2021"]
[White "Vukovic, Zdravko"]
[Black "Costachi, Mihnea"]
[WhiteFideId "900877"]
[BlackFideId "1217518"]
[WhiteElo "2510"]
[BlackElo "2479"]
[Result "1-0"]
[Round "02"]
[TimeControl "180+1"]
[Date "2021.06.01"]
[WhiteClock "0:00:44"]
[BlackClock "0:00:32"]

1. e4 {[%clk 0:02:58]}  e5 {[%clk 0:03:00]} 2. Nf3 {[%clk 0:02:58]}  Nc6 {[%clk 0:03:00]} 3. Bc4 {[%clk 0:02:58]}  Bc5 {[%clk 0:03:00]} 4. Nc3 {[%clk 0:02:57]}  Nf6 {[%clk 0:03:00]} 5. d3 {[%clk 0:02:52]}  d6 {[%clk 0:03:00]} 6. h3 {[%clk 0:02:51]}  h6 {[%clk 0:03:00]} 7. Be3 {[%clk 0:02:50]}  Bb6 {[%clk 0:03:00]} 8. Qe2 {[%clk 0:02:41]}  Be6 {[%clk 0:03:00]} 9. Bb3 {[%clk 0:02:41]}  Qe7 {[%clk 0:02:55]} 10. O-O-O {[%clk 0:02:25]}  O-O-O {[%clk 0:02:55]} 11. d4 {[%clk 0:02:22]}  exd4 {[%clk 0:02:54]} 12. Nxd4 {[%clk 0:02:19]}  Nxd4 {[%clk 0:02:55]} 13. Bxd4 {[%clk 0:02:18]}  Bxd4 {[%clk 0:02:56]} 14. Rxd4 {[%clk 0:02:18]}  Bxb3 {[%clk 0:02:57]} 15. axb3 {[%clk 0:02:10]}  Rhe8 {[%clk 0:02:57]} 16. Qd2 {[%clk 0:02:01]}  Qe5 {[%clk 0:02:54]} 17. f4 {[%clk 0:01:55]}  Qa5 {[%clk 0:02:47]} 18. Kb1 {[%clk 0:01:52]}  a6 {[%clk 0:02:46]} 19. Rd1 {[%clk 0:01:50]}  Re6 {[%clk 0:02:19]} 20. e5 {[%clk 0:01:47]}  Ne8 {[%clk 0:02:14]} 21. Qd3 {[%clk 0:01:46]}  Kb8 {[%clk 0:02:06]} 22. Rd5 {[%clk 0:01:38]}  Qb4 {[%clk 0:01:57]} 23. Qf5 {[%clk 0:01:33]}  Re7 {[%clk 0:01:51]} 24. R5d4 {[%clk 0:01:26]}  Qc5 {[%clk 0:01:50]} 25. g4 {[%clk 0:01:21]}  g6 {[%clk 0:01:45]} 26. Qd3 {[%clk 0:01:15]}  Rc8 {[%clk 0:01:45]} 27. b4 {[%clk 0:01:13]}  Qc6 {[%clk 0:01:43]} 28. b5 {[%clk 0:01:11]}  axb5 {[%clk 0:01:39]} 29. Nxb5 {[%clk 0:01:12]}  dxe5 {[%clk 0:01:38]} 30. Ra4 {[%clk 0:01:09]}  Nd6 {[%clk 0:01:23]} 31. Qa3 {[%clk 0:01:07]}  b6 {[%clk 0:01:23]} 32. Na7 {[%clk 0:01:05]}  Qb7 {[%clk 0:00:58]} 33. fxe5 {[%clk 0:01:02]}  Rxe5 {[%clk 0:00:54]} 34. Rxd6 {[%clk 0:01:00]}  Re1+ {[%clk 0:00:51]} 35. Ka2 {[%clk 0:00:59]}  cxd6 {[%clk 0:00:48]} 36. Qxd6+ {[%clk 0:00:57]}  Rc7 {[%clk 0:00:47]} 37. Qd8+ {[%clk 0:00:57]}  Rc8 {[%clk 0:00:47]} 38. Nxc8 {[%clk 0:00:54]}  Qc6 {[%clk 0:00:34]} 39. Nd6+ {[%clk 0:00:44]}  Qc8 {[%clk 0:00:32]} 40. Qxc8# {[%clk 0:00:44]} 1-0


[Site "https://www.chess.com"]

[Event "Titled Tuesday Blitz June 1 2021"]
[White "Zhigalko, Sergei"]
[Black "Woodward, Andy"]
[WhiteFideId "13502956"]
[BlackFideId "30953499"]
[WhiteElo "2662"]
[BlackElo "2596"]
[Result "1-0"]
[Round "02"]
[TimeControl "180+1"]
[Date "2021.06.01"]
[WhiteClock "0:00:09"]
[BlackClock "0:00:27"]

1. e4 {[%clk 0:03:00]}  c5 {[%clk 0:02:59]} 2. Nf3 {[%clk 0:03:00]}  d6 {[%clk 0:02:59]} 3. d4 {[%clk 0:02:59]}  cxd4 {[%clk 0:03:00]} 4. Qxd4 {[%clk 0:02:58]}  a6 {[%clk 0:02:59]} 5. Bc4 {[%clk 0:02:58]}  Nc6 {[%clk 0:03:00]} 6. Qd3 {[%clk 0:02:59]}  g6 {[%clk 0:02:58]} 7. Nc3 {[%clk 0:02:58]}  Bg7 {[%clk 0:02:58]} 8. Bb3 {[%clk 0:02:59]}  Nf6 {[%clk 0:02:58]} 9. Bg5 {[%clk 0:02:59]}  O-O {[%clk 0:02:58]} 10. O-O-O {[%clk 0:02:59]}  Nd7 {[%clk 0:02:56]} 11. Kb1 {[%clk 0:02:53]}  Nc5 {[%clk 0:02:53]} 12. Qe3 {[%clk 0:02:53]}  Nxb3 {[%clk 0:02:51]} 13. axb3 {[%clk 0:02:47]}  Be6 {[%clk 0:02:51]} 14. Nd5 {[%clk 0:02:31]}  a5 {[%clk 0:02:41]} 15. Bh6 {[%clk 0:02:20]}  f6 {[%clk 0:02:28]} 16. Bxg7 {[%clk 0:02:15]}  Kxg7 {[%clk 0:02:29]} 17. Nd4 {[%clk 0:02:06]}  Nxd4 {[%clk 0:02:27]} 18. Rxd4 {[%clk 0:02:05]}  b5 {[%clk 0:02:22]} 19. h4 {[%clk 0:01:57]}  h5 {[%clk 0:02:21]} 20. f4 {[%clk 0:01:30]}  Bf7 {[%clk 0:02:03]} 21. f5 {[%clk 0:01:24]}  e6 {[%clk 0:01:56]} 22. fxe6 {[%clk 0:00:58]}  Bxe6 {[%clk 0:01:57]} 23. Qg3 {[%clk 0:00:45]}  Kh7 {[%clk 0:01:40]} 24. Rhd1 {[%clk 0:00:37]}  Ra6 {[%clk 0:01:39]} 25. Nc3 {[%clk 0:00:32]}  b4 {[%clk 0:01:29]} 26. Na4 {[%clk 0:00:26]}  Qc7 {[%clk 0:01:25]} 27. Qd3 {[%clk 0:00:21]}  Rc6 {[%clk 0:01:18]} 28. Rxd6 {[%clk 0:00:20]}  Rc8 {[%clk 0:01:18]} 29. Rxc6 {[%clk 0:00:16]}  Qxc6 {[%clk 0:01:19]} 30. Rd2 {[%clk 0:00:16]}  Kh8 {[%clk 0:01:05]} 31. Qd4 {[%clk 0:00:16]}  Bg8 {[%clk 0:00:59]} 32. Nb6 {[%clk 0:00:13]}  Rc7 {[%clk 0:00:55]} 33. Nd7 {[%clk 0:00:11]}  Kg7 {[%clk 0:00:54]} 34. e5 {[%clk 0:00:11]}  a4 {[%clk 0:00:27]} 35. exf6+ {[%clk 0:00:10]}  Kh6 {[%clk 0:00:26]} 36. Qf4+ {[%clk 0:00:08]}  Kh7 {[%clk 0:00:26]} 37. Nf8+ {[%clk 0:00:08]}  Kh8 {[%clk 0:00:27]} 38. Qh6+ {[%clk 0:00:08]}  Bh7 {[%clk 0:00:27]} 39. Nxg6+ {[%clk 0:00:08]}  Kg8 {[%clk 0:00:27]} 40. Qf8# {[%clk 0:00:09]} 1-0


[Site "https://www.chess.com"]

[Event "Titled Tuesday Blitz June 1 2021"]
[White "Belenkaya, Dina"]
[Black "Ter-Sahakyan, Samvel"]
[WhiteFideId "24142654"]
[BlackFideId "13302531"]
[WhiteElo "2247"]
[BlackElo "2551"]
[Result "0-1"]
[Round "03"]
[TimeControl "180+1"]
[Date "2021.06.01"]
[WhiteClock "0:00:08"]
[BlackClock "0:01:09"]

1. e4 {[%clk 0:03:00]}  c5 {[%clk 0:02:59]} 2. Nc3 {[%clk 0:03:00]}  d6 {[%clk 0:02:59]} 3. g3 {[%clk 0:02:57]}  g6 {[%clk 0:02:59]} 4. Bg2 {[%clk 0:02:57]}  Bg7 {[%clk 0:02:59]} 5. d3 {[%clk 0:02:57]}  Nc6 {[%clk 0:02:59]} 6. Be3 {[%clk 0:02:57]}  Rb8 {[%clk 0:02:56]} 7. Qd2 {[%clk 0:02:56]}  b5 {[%clk 0:02:55]} 8. Nge2 {[%clk 0:02:51]}  b4 {[%clk 0:02:55]} 9. Nd1 {[%clk 0:02:50]}  Nf6 {[%clk 0:02:55]} 10. h3 {[%clk 0:02:30]}  h5 {[%clk 0:02:48]} 11. f4 {[%clk 0:02:28]}  Bd7 {[%clk 0:02:36]} 12. O-O {[%clk 0:02:26]}  Qc8 {[%clk 0:02:34]} 13. f5 {[%clk 0:02:11]}  gxf5 {[%clk 0:02:25]} 14. exf5 {[%clk 0:02:11]}  Ne5 {[%clk 0:02:25]} 15. d4 {[%clk 0:02:01]}  Nc4 {[%clk 0:02:25]} 16. Qd3 {[%clk 0:02:01]}  Bb5 {[%clk 0:02:17]} 17. dxc5 {[%clk 0:01:45]}  Nxb2 {[%clk 0:02:07]} 18. Qd2 {[%clk 0:01:27]}  Nc4 {[%clk 0:02:06]} 19. Qd4 {[%clk 0:01:27]}  Nxe3 {[%clk 0:02:02]} 20. Qxe3 {[%clk 0:01:24]}  Qxc5 {[%clk 0:02:02]} 21. Qxc5 {[%clk 0:00:51]}  dxc5 {[%clk 0:02:02]} 22. Re1 {[%clk 0:00:50]}  h4 {[%clk 0:01:55]} 23. Ne3 {[%clk 0:00:32]}  Bxe2 {[%clk 0:01:52]} 24. Rxe2 {[%clk 0:00:32]}  hxg3 {[%clk 0:01:53]} 25. Rae1 {[%clk 0:00:31]}  Rh4 {[%clk 0:01:41]} 26. Ng4 {[%clk 0:00:18]}  Nxg4 {[%clk 0:01:38]} 27. Rxe7+ {[%clk 0:00:18]}  Kf8 {[%clk 0:01:38]} 28. hxg4 {[%clk 0:00:17]}  Bd4+ {[%clk 0:01:34]} 29. Kf1 {[%clk 0:00:16]}  Rxg4 {[%clk 0:01:34]} 30. R7e4 {[%clk 0:00:09]}  Rg5 {[%clk 0:01:23]} 31. Rf4 {[%clk 0:00:09]}  Rb6 {[%clk 0:01:21]} 32. Bd5 {[%clk 0:00:08]}  Rf6 {[%clk 0:01:19]} 33. Be4 {[%clk 0:00:04]}  g2+ {[%clk 0:01:17]} 34. Bxg2 {[%clk 0:00:04]}  Rgxf5 {[%clk 0:01:17]} 35. Re4 {[%clk 0:00:03]}  Rxf4+ {[%clk 0:01:13]} 36. Rxf4 {[%clk 0:00:04]}  Rxf4+ {[%clk 0:01:13]} 37. Ke1 {[%clk 0:00:05]}  Ke7 {[%clk 0:01:12]} 38. Bd5 {[%clk 0:00:06]}  Kd6 {[%clk 0:01:12]} 39. Ke2 {[%clk 0:00:07]}  Kxd5 {[%clk 0:01:09]} 40. Kd3 {[%clk 0:00:08]} 0-1


[Site "https://www.chess.com"]

[Event "Titled Tuesday Blitz June 1 2021"]
[White "Bluebaum, Matthias"]
[Black "Ezat, Mohamed"]
[WhiteFideId "24651516"]
[BlackFideId "10600906"]
[WhiteElo "2685"]
[BlackElo "2417"]
[Result "1-0"]
[Round "03"]
[TimeControl "180+1"]
[Date "2021.06.01"]
[WhiteClock "0:01:37"]
[BlackClock "0:00:05"]

1. d4 {[%clk 0:03:00]}  Nf6 {[%clk 0:02:54]} 2. c4 {[%clk 0:03:00]}  g6 {[%clk 0:02:55]} 3. Nc3 {[%clk 0:03:01]}  Bg7 {[%clk 0:02:55]} 4. e4 {[%clk 0:03:01]}  d6 {[%clk 0:02:56]} 5. Be2 {[%clk 0:03:02]}  O-O {[%clk 0:02:56]} 6. Be3 {[%clk 0:03:03]}  e5 {[%clk 0:02:55]} 7. d5 {[%clk 0:03:03]}  Na6 {[%clk 0:02:56]} 8. g4 {[%clk 0:03:01]}  Nd7 {[%clk 0:02:56]} 9. h4 {[%clk 0:03:01]}  f5 {[%clk 0:02:52]} 10. gxf5 {[%clk 0:03:00]}  gxf5 {[%clk 0:02:52]} 11. exf5 {[%clk 0:03:01]}  Ndc5 {[%clk 0:02:52]} 12. h5 {[%clk 0:02:55]}  Bxf5 {[%clk 0:02:51]} 13. a3 {[%clk 0:02:55]}  Ne4 {[%clk 0:02:48]} 14. h6 {[%clk 0:02:48]}  Bf6 {[%clk 0:02:47]} 15. Bg4 {[%clk 0:02:46]}  Nxc3 {[%clk 0:02:37]} 16. bxc3 {[%clk 0:02:46]}  Be4 {[%clk 0:02:27]} 17. Rh3 {[%clk 0:02:41]}  Bg5 {[%clk 0:01:57]} 18. Qd2 {[%clk 0:02:32]}  Bxe3 {[%clk 0:01:49]} 19. Qxe3 {[%clk 0:02:32]}  Bg6 {[%clk 0:01:48]} 20. Ne2 {[%clk 0:02:27]}  Nc5 {[%clk 0:01:46]} 21. Kf1 {[%clk 0:02:26]}  Ne4 {[%clk 0:01:21]} 22. f3 {[%clk 0:02:18]}  Ng5 {[%clk 0:01:16]} 23. Rg3 {[%clk 0:02:18]}  Kh8 {[%clk 0:00:46]} 24. Kg2 {[%clk 0:02:17]}  Qf6 {[%clk 0:00:36]} 25. Rg1 {[%clk 0:02:15]}  Rg8 {[%clk 0:00:30]} 26. Kh1 {[%clk 0:02:09]}  Raf8 {[%clk 0:00:28]} 27. R1g2 {[%clk 0:02:10]}  b6 {[%clk 0:00:20]} 28. Kg1 {[%clk 0:01:56]}  a5 {[%clk 0:00:19]} 29. Rf2 {[%clk 0:01:56]}  Bb1 {[%clk 0:00:15]} 30. Rfg2 {[%clk 0:01:54]}  Qxh6 {[%clk 0:00:15]} 31. Kf1 {[%clk 0:01:50]}  Bg6 {[%clk 0:00:12]} 32. Be6 {[%clk 0:01:37]}  Qh1+ {[%clk 0:00:08]} 33. Ng1 {[%clk 0:01:37]}  Nxe6 {[%clk 0:00:06]} 34. dxe6 {[%clk 0:01:38]}  Rf6 {[%clk 0:00:06]} 35. Rh3 {[%clk 0:01:39]}  Qxg2+ {[%clk 0:00:06]} 36. Kxg2 {[%clk 0:01:39]}  Bf5+ {[%clk 0:00:06]} 37. Kf2 {[%clk 0:01:37]}  Bxh3 {[%clk 0:00:06]} 38. Nxh3 {[%clk 0:01:38]}  Rxe6 {[%clk 0:00:05]} 39. Ng5 {[%clk 0:01:38]}  Rf6 {[%clk 0:00:05]} 40. Ne4 {[%clk 0:01:39]}  Rf5 {[%clk 0:00:05]} 41. Qh6 {[%clk 0:01:38]}  Rgf8 {[%clk 0:00:05]} 42. Ng5 {[%clk 0:01:37]}  Rxg5 {[%clk 0:00:05]} 43. Qxg5 {[%clk 0:01:38]}  Rf7 {[%clk 0:00:05]} 44. Ke3 {[%clk 0:01:37]} 1-0


[Site "https://www.chess.com"]

[Event "Titled Tuesday Blitz June 1 2021"]
[White "Dang, Hoang Son"]
[Black "Beukes, Dante M"]
[WhiteFideId "12402435"]
[BlackFideId "15200540"]
[WhiteElo "2248"]
[BlackElo "2000"]
[Result "1-0"]
[Round "03"]
[TimeControl "180+1"]
[Date "2021.06.01"]
[WhiteClock "0:00:46"]
[BlackClock "0:00:02"]

1. d4 {[%clk 0:03:00]}  Nf6 {[%clk 0:02:58]} 2. c4 {[%clk 0:03:01]}  g6 {[%clk 0:02:58]} 3. Nf3 {[%clk 0:03:02]}  Bg7 {[%clk 0:02:58]} 4. g3 {[%clk 0:03:02]}  O-O {[%clk 0:02:58]} 5. Bg2 {[%clk 0:03:03]}  d6 {[%clk 0:02:59]} 6. O-O {[%clk 0:03:04]}  Nc6 {[%clk 0:02:59]} 7. Nc3 {[%clk 0:03:05]}  e5 {[%clk 0:03:00]} 8. dxe5 {[%clk 0:03:04]}  dxe5 {[%clk 0:03:01]} 9. Bg5 {[%clk 0:03:02]}  Be6 {[%clk 0:03:00]} 10. Qa4 {[%clk 0:03:01]}  h6 {[%clk 0:03:00]} 11. Bxf6 {[%clk 0:03:01]}  Bxf6 {[%clk 0:02:57]} 12. Rfd1 {[%clk 0:03:02]}  Qc8 {[%clk 0:02:57]} 13. Nd2 {[%clk 0:03:02]}  Nd4 {[%clk 0:02:45]} 14. Rac1 {[%clk 0:02:53]}  Be7 {[%clk 0:02:28]} 15. e3 {[%clk 0:02:25]}  Bd7 {[%clk 0:01:55]} 16. Qa5 {[%clk 0:02:24]}  Ne6 {[%clk 0:01:55]} 17. Qxe5 {[%clk 0:02:18]}  Bd6 {[%clk 0:01:53]} 18. Qf6 {[%clk 0:02:18]}  Nc5 {[%clk 0:01:42]} 19. Nde4 {[%clk 0:02:12]}  Bg4 {[%clk 0:01:10]} 20. Nxd6 {[%clk 0:01:58]}  cxd6 {[%clk 0:01:09]} 21. Rxd6 {[%clk 0:01:59]}  Qf5 {[%clk 0:00:58]} 22. Nd5 {[%clk 0:01:51]}  Rae8 {[%clk 0:00:48]} 23. Qxf5 {[%clk 0:01:49]}  Bxf5 {[%clk 0:00:46]} 24. Nf6+ {[%clk 0:01:49]}  Kg7 {[%clk 0:00:47]} 25. Nxe8+ {[%clk 0:01:48]}  Rxe8 {[%clk 0:00:48]} 26. Rcd1 {[%clk 0:01:49]}  a5 {[%clk 0:00:43]} 27. b3 {[%clk 0:01:45]}  h5 {[%clk 0:00:37]} 28. R1d5 {[%clk 0:01:36]}  Rc8 {[%clk 0:00:33]} 29. h3 {[%clk 0:01:28]}  Rc7 {[%clk 0:00:30]} 30. Bf3 {[%clk 0:01:26]}  Bb1 {[%clk 0:00:26]} 31. Rd2 {[%clk 0:01:10]}  Bf5 {[%clk 0:00:25]} 32. g4 {[%clk 0:01:10]}  hxg4 {[%clk 0:00:26]} 33. hxg4 {[%clk 0:01:11]}  Be6 {[%clk 0:00:25]} 34. Kg2 {[%clk 0:01:07]}  Nd7 {[%clk 0:00:25]} 35. Kg3 {[%clk 0:01:03]}  Ne5 {[%clk 0:00:22]} 36. Be2 {[%clk 0:01:03]}  Nd7 {[%clk 0:00:19]} 37. f4 {[%clk 0:01:03]}  Nc5 {[%clk 0:00:17]} 38. Bf3 {[%clk 0:01:03]}  Nd7 {[%clk 0:00:12]} 39. e4 {[%clk 0:01:00]}  Nc5 {[%clk 0:00:13]} 40. f5 {[%clk 0:01:00]}  gxf5 {[%clk 0:00:12]} 41. exf5 {[%clk 0:00:59]}  Bc8 {[%clk 0:00:13]} 42. Kf4 {[%clk 0:00:57]}  Bd7 {[%clk 0:00:09]} 43. g5 {[%clk 0:00:56]}  b5 {[%clk 0:00:09]} 44. cxb5 {[%clk 0:00:55]}  Bxb5 {[%clk 0:00:09]} 45. f6+ {[%clk 0:00:53]}  Kf8 {[%clk 0:00:06]} 46. Rd8+ {[%clk 0:00:52]}  Be8 {[%clk 0:00:06]} 47. Bg4 {[%clk 0:00:50]}  Rb7 {[%clk 0:00:04]} 48. R2d4 {[%clk 0:00:46]}  a4 {[%clk 0:00:01]} 49. Rc4 {[%clk 0:00:46]}  axb3 {[%clk 0:00:01]} 50. Rxc5 {[%clk 0:00:45]}  b2 {[%clk 0:00:02]} 51. Rxe8+ {[%clk 0:00:46]}  Kxe8 {[%clk 0:00:02]} 52. Rc8# {[%clk 0:00:46]} 1-0


[Site "https://www.chess.com"]